{"text_format":"1","workbook":"xlsx","n_sheets":9,"sheets":["0.항목구성(우주항공청 비전과 목표)","1-1.상위평가","1-2. 발사서비스 시장 진출","1-3. 위성 생태계 조성","1-4. 탐사 확대","1-5. 기반 분야 강화 ","2.협력국가","3.거버넌스 개선","4.인적사항"],"not_rendered":{"charts":7,"images":7,"macros":1,"external_links":0,"defined_names":10,"comments":0,"pivot_tables":0},"unopened":[],"bounds":{"document_bytes":16777216,"sheet_cells":100000,"rows_first":2000,"rows_last":500,"rows_between":2000,"halvings":0,"cell_chars":16384,"cell_head_chars":4096},"cells_cut":0,"cells_raw":0,"read":"whole","date_system":"1900"}

{"sheet":"0.항목구성(우주항공청 비전과 목표)","index":0,"n_rows":28,"n_cols":9,"rows_kept":28,"cut":false,"hidden":false,"merged":[[27,8,27,18]]}
[]
[]
[]
[]
[]
[]
[]
[]
[]
[]
[]
[]
[]
[]
[]
[]
[]
[]
[]
[]
[]
[]
[]
[]
[]
[]
[]
[null,null,null,null,null,null,null,null,"우주항공청의 7대 추진전략 중 국제협력의 대상이 되는 분야를 발취한 뒤 총 4개의 하위 부류로 재구성"]

{"sheet":"1-1.상위평가","index":1,"n_rows":37,"n_cols":39,"rows_kept":37,"cut":false,"hidden":false,"merged":[[47,8,47,12],[36,3,36,20],[34,3,34,20],[35,3,35,20],[1,1,1,20],[2,1,2,20],[4,11,4,13],[22,1,24,1],[22,2,24,2],[22,3,22,19],[22,20,24,20],[23,3,23,10],[23,12,23,19]]}
[]
[null,"아래의 설문은 성과지표의 가중치 평가를 위한 작업으로서, 각 지표별로 쌍대비교를 하게 됩니다. 비교평가하여 그 중요도에 따라 체크해주시기 바랍니다.\n※ 각 항목의 세부내용에 대해서는 아래 부연설명 란을 참고해 주시기 바랍니다.",null,null,null,null,null,null,null,null,null,null,null,null,null,null,null,null,null,null,null,null,null,"n",4]
[null,"※ AHP방식에 의한 설문의 효과성을 높이기 위해서는 일관성(consistency)이 요구 되며, 일반적으로 10%이하를 기준으로 하고 있습니다.\n아래의 설문을 완성하신 후, Inconsistency ratio가 10%를 초과할 경우 이를 고려하여 수정 부탁드립니다."]
[null,null,null,null,null,null,null,null,null,null,null,null,null,null,null,null,null,null,null,null,null,null,null,null,{"$f":"C6","v":"발사서비스 시장 진출"},{"$f":"C7","v":"위성 생태계 조성"},{"$f":"C8","v":"탐사 확대"},{"$f":"C9","v":"기반 분야 강화 "},null,null,null,null,null,null,"geomean","weight","sum",null,"chart"]
[null,"No.","AHP 평가대상 항목명",null,null,"Inconsistency = ",null,null,null,null,null,{"$f":"AL19","v":0},null,null,null,null,null,null,null,null,null,null,null,{"$f":"Y4","v":"발사서비스 시장 진출"},1,{"$f":"IF(Z26<=9, 10-Z26, 1/(Z26-8))","v":1},{"$f":"IF(AA26<=9, 10-AA26, 1/(AA26-8))","v":1},{"$f":"IF(AB26<=9, 10-AB26, 1/(AB26-8))","v":1},null,null,null,null,null,null,{"$f":"GEOMEAN(Y5:AH5)","v":1},{"$f":"AI5/AI16","v":0.25},{"$f":"SUM(Y5:Y14)","v":4},{"$f":"AJ5*AK5","v":1},{"$f":"AJ5","v":0.25}]
[null,1,"발사서비스 시장 진출",null,null,null,null,null,null,null,null,null,null,null,null,null,null,null,null,null,null,null,null,{"$f":"Z4","v":"위성 생태계 조성"},{"$f":"1/Z5","v":1},1,{"$f":"IF(AA27<=9, 10-AA27, 1/(AA27-8))","v":1},{"$f":"IF(AB27<=9, 10-AB27, 1/(AB27-8))","v":1},null,null,null,null,null,null,{"$f":"GEOMEAN(Y6:AH6)","v":1},{"$f":"AI6/AI16","v":0.25},{"$f":"SUM(Z5:Z14)","v":4},{"$f":"AJ6*AK6","v":1},{"$f":"AJ6","v":0.25}]
[null,2,"위성 생태계 조성",null,null,null,null,null,null,null,null,null,null,null,null,null,null,null,null,null,null,null,null,{"$f":"AA4","v":"탐사 확대"},{"$f":"1/AA5","v":1},{"$f":"1/AA6","v":1},1,{"$f":"IF(AB28<=9, 10-AB28, 1/(AB28-8))","v":1},null,null,null,null,null,null,{"$f":"GEOMEAN(Y7:AH7)","v":1},{"$f":"AI7/AI16","v":0.25},{"$f":"SUM(AA5:AA14)","v":4},{"$f":"AJ7*AK7","v":1},{"$f":"AJ7","v":0.25}]
[null,3,"탐사 확대",null,null,null,null,null,null,null,null,null,null,null,null,null,null,null,null,null,null,null,null,{"$f":"AB4","v":"기반 분야 강화 "},{"$f":"1/AB5","v":1},{"$f":"1/AB6","v":1},{"$f":"1/AB7","v":1},1,null,null,null,null,null,null,{"$f":"GEOMEAN(Y8:AH8)","v":1},{"$f":"AI8/AI16","v":0.25},{"$f":"SUM(AB5:AB14)","v":4},{"$f":"AJ8*AK8","v":1},{"$f":"AJ8","v":0.25}]
[null,4,"기반 분야 강화 "]
[]
[]
[]
[]
[]
[]
[null,null,null,null,null,null,null,null,null,null,null,null,null,null,null,null,null,null,null,null,null,null,null,null,null,null,null,null,null,null,null,null,null,null,{"$f":"SUM(AI5:AI14)","v":4},null,"λmax",{"$f":"SUM(AL5:AL14)","v":4}]
[null,null,null,null,null,null,null,null,null,null,null,null,null,null,null,null,null,null,null,null,null,null,null,null,null,null,null,null,null,null,null,null,null,null,null,null,"C.I",{"$f":"(AL16-Y2)/(Y2-1)","v":0}]
[null,null,null,null,null,null,null,null,null,null,null,null,null,null,null,null,null,null,null,null,null,null,null,null,null,null,null,null,null,null,null,null,null,null,null,null,"RCI",{"$f":"LOOKUP(Y2,X20:AL20,X21:AL21)","v":0.9}]
[null,null,null,null,null,null,null,null,null,null,null,null,null,null,null,null,null,null,null,null,null,null,null,"RCI",null,null,null,null,null,null,null,null,null,null,null,null,"ratio",{"$f":"AL17/AL18","v":0}]
[null,null,null,null,null,null,null,null,null,null,null,null,null,null,null,null,null,null,null,null,null,null,null,1,2,3,4,5,6,7,8,9,10,11,12,13,14,15]
[null,null,null,null,null,null,null,null,null,null,null,null,null,null,null,null,null,null,null,null,null,null,null,0,0,0.57999999999999996,0.9,1.1200000000000001,1.24,1.32,1.41,1.45,1.49,1.51,1.48,1.56,1.57,1.59]
[]
[null,"문항","평가기준\n(A)","평 가 척 도",null,null,null,null,null,null,null,null,null,null,null,null,null,null,null,null,"평가기준\n(B)"]
[null,null,null,"A가 B보다 중요",null,null,null,null,null,null,null,"같다","B가 A보다 중요"]
[null,null,null,9,8,7,6,5,4,3,2,1,2,3,4,5,6,7,8,9,null,null,null,null,"A1","A2","A3","A4"]
[null,1,{"$f":"C6","v":"발사서비스 시장 진출"},null,null,null,null,null,null,null,null,null,null,null,null,null,null,null,null,null,{"$f":"C7","v":"위성 생태계 조성"},null,null,{"$f":"Y25","v":"A1"},1,9,9,9]
[null,2,{"$f":"C6","v":"발사서비스 시장 진출"},null,null,null,null,null,null,null,null,null,null,null,null,null,null,null,null,null,{"$f":"C8","v":"탐사 확대"},null,null,{"$f":"Z25","v":"A2"},1,1,9,9]
[null,3,{"$f":"C6","v":"발사서비스 시장 진출"},null,null,null,null,null,null,null,null,null,null,null,null,null,null,null,null,null,{"$f":"C9","v":"기반 분야 강화 "},null,null,{"$f":"AA25","v":"A3"},1,1,1,9]
[null,4,{"$f":"C7","v":"위성 생태계 조성"},null,null,null,null,null,null,null,null,null,null,null,null,null,null,null,null,null,{"$f":"C8","v":"탐사 확대"},null,null,{"$f":"AB25","v":"A4"},1,1,1,1]
[null,5,{"$f":"C7","v":"위성 생태계 조성"},null,null,null,null,null,null,null,null,null,null,null,null,null,null,null,null,null,{"$f":"C9","v":"기반 분야 강화 "}]
[null,6,{"$f":"C8","v":"탐사 확대"},null,null,null,null,null,null,null,null,null,null,null,null,null,null,null,null,null,{"$f":"C9","v":"기반 분야 강화 "}]
[]
[null,"No.","부연설명 "]
[null,1,"발사서비스 시장 진출","저궤도 상용발사부터 심우주 탐사까지 대응 가능한 탑재 역량 및 경제성 확보"]
[null,2,"위성 생태계 조성","첨단위성 개발 및 위성 운영체계 구축, 위성정보 활용 활성화를 통한 부가가치 창출 "]
[null,3,"탐사 확대","국제협력 기반의 탐사 활동을 통해 우주경제 영토 확장"]
[null,4,"기반 분야 강화 ","우주산업, 인력, 안보(우주에서의 안보:국제규범 논의, 우주로부터의 안보: 우주자산 보호 등) 협력"]

{"sheet":"1-2. 발사서비스 시장 진출","index":2,"n_rows":33,"n_cols":39,"rows_kept":33,"cut":false,"hidden":false,"merged":[[44,8,44,12],[32,3,32,20],[31,3,31,20],[1,1,1,20],[2,1,2,20],[4,11,4,13],[22,1,24,1],[22,2,24,2],[22,3,22,19],[22,20,24,20],[23,3,23,10],[23,12,23,19]]}
[]
[null,"아래의 설문은 성과지표의 가중치 평가를 위한 작업으로서, 각 지표별로 쌍대비교를 하게 됩니다. 비교평가하여 그 중요도에 따라 체크해주시기 바랍니다.\n※ 각 항목의 세부내용에 대해서는 아래 부연설명 란을 참고해 주시기 바랍니다.",null,null,null,null,null,null,null,null,null,null,null,null,null,null,null,null,null,null,null,null,null,"n",3]
[null,"※ AHP방식에 의한 설문의 효과성을 높이기 위해서는 일관성(consistency)이 요구 되며, 일반적으로 10%이하를 기준으로 하고 있습니다.\n아래의 설문을 완성하신 후, Inconsistency ratio가 10%를 초과할 경우 이를 고려하여 수정 부탁드립니다."]
[null,null,null,null,null,null,null,null,null,null,null,null,null,null,null,null,null,null,null,null,null,null,null,null,{"$f":"C6","v":"기존발사체(누리호) 경쟁력 제고 및 상용화 "},{"$f":"C7","v":"신규 발사체(차세대, 재사용 등) 개발 "},{"$f":"C8","v":"발사장 인프라(해외 지상/해상 발사장 등) 협력 "},null,null,null,null,null,null,null,"geomean","weight","sum",null,"chart"]
[null,"No.","AHP 평가대상 항목명",null,null,"Inconsistency = ",null,null,null,null,null,{"$f":"AL19","v":0},null,null,null,null,null,null,null,null,null,null,null,{"$f":"Y4","v":"기존발사체(누리호) 경쟁력 제고 및 상용화 "},1,{"$f":"IF(Z26<=9, 10-Z26, 1/(Z26-8))","v":1},{"$f":"IF(AA26<=9, 10-AA26, 1/(AA26-8))","v":1},null,null,null,null,null,null,null,{"$f":"GEOMEAN(Y5:AH5)","v":1},{"$f":"AI5/AI16","v":0.33333333333333331},{"$f":"SUM(Y5:Y14)","v":3},{"$f":"AJ5*AK5","v":1},{"$f":"AJ5","v":0.33333333333333331}]
[null,1,"기존발사체(누리호) 경쟁력 제고 및 상용화 ",null,null,null,null,null,null,null,null,null,null,null,null,null,null,null,null,null,null,null,null,{"$f":"Z4","v":"신규 발사체(차세대, 재사용 등) 개발 "},{"$f":"1/Z5","v":1},1,{"$f":"IF(AA27<=9, 10-AA27, 1/(AA27-8))","v":1},null,null,null,null,null,null,null,{"$f":"GEOMEAN(Y6:AH6)","v":1},{"$f":"AI6/AI16","v":0.33333333333333331},{"$f":"SUM(Z5:Z14)","v":3},{"$f":"AJ6*AK6","v":1},{"$f":"AJ6","v":0.33333333333333331}]
[null,2,"신규 발사체(차세대, 재사용 등) 개발 ",null,null,null,null,null,null,null,null,null,null,null,null,null,null,null,null,null,null,null,null,{"$f":"AA4","v":"발사장 인프라(해외 지상/해상 발사장 등) 협력 "},{"$f":"1/AA5","v":1},{"$f":"1/AA6","v":1},1,null,null,null,null,null,null,null,{"$f":"GEOMEAN(Y7:AH7)","v":1},{"$f":"AI7/AI16","v":0.33333333333333331},{"$f":"SUM(AA5:AA14)","v":3},{"$f":"AJ7*AK7","v":1},{"$f":"AJ7","v":0.33333333333333331}]
[null,3,"발사장 인프라(해외 지상/해상 발사장 등) 협력 "]
[]
[]
[]
[]
[]
[]
[]
[null,null,null,null,null,null,null,null,null,null,null,null,null,null,null,null,null,null,null,null,null,null,null,null,null,null,null,null,null,null,null,null,null,null,{"$f":"SUM(AI5:AI14)","v":3},null,"λmax",{"$f":"SUM(AL5:AL14)","v":3}]
[null,null,null,null,null,null,null,null,null,null,null,null,null,null,null,null,null,null,null,null,null,null,null,null,null,null,null,null,null,null,null,null,null,null,null,null,"C.I",{"$f":"(AL16-Y2)/(Y2-1)","v":0}]
[null,null,null,null,null,null,null,null,null,null,null,null,null,null,null,null,null,null,null,null,null,null,null,null,null,null,null,null,null,null,null,null,null,null,null,null,"RCI",{"$f":"LOOKUP(Y2,X20:AL20,X21:AL21)","v":0.57999999999999996}]
[null,null,null,null,null,null,null,null,null,null,null,null,null,null,null,null,null,null,null,null,null,null,null,"RCI",null,null,null,null,null,null,null,null,null,null,null,null,"ratio",{"$f":"AL17/AL18","v":0}]
[null,null,null,null,null,null,null,null,null,null,null,null,null,null,null,null,null,null,null,null,null,null,null,1,2,3,4,5,6,7,8,9,10,11,12,13,14,15]
[null,null,null,null,null,null,null,null,null,null,null,null,null,null,null,null,null,null,null,null,null,null,null,0,0,0.57999999999999996,0.9,1.1200000000000001,1.24,1.32,1.41,1.45,1.49,1.51,1.48,1.56,1.57,1.59]
[]
[null,"문항","평가기준\n(A)","평 가 척 도",null,null,null,null,null,null,null,null,null,null,null,null,null,null,null,null,"평가기준\n(B)"]
[null,null,null,"A가 B보다 중요",null,null,null,null,null,null,null,"같다","B가 A보다 중요"]
[null,null,null,9,8,7,6,5,4,3,2,1,2,3,4,5,6,7,8,9,null,null,null,null,"A1","A2","A3"]
[null,1,{"$f":"C6","v":"기존발사체(누리호) 경쟁력 제고 및 상용화 "},null,null,null,null,null,null,null,null,null,null,null,null,null,null,null,null,null,{"$f":"C7","v":"신규 발사체(차세대, 재사용 등) 개발 "},null,null,{"$f":"Y25","v":"A1"},1,9,9]
[null,2,{"$f":"C6","v":"기존발사체(누리호) 경쟁력 제고 및 상용화 "},null,null,null,null,null,null,null,null,null,null,null,null,null,null,null,null,null,{"$f":"C8","v":"발사장 인프라(해외 지상/해상 발사장 등) 협력 "},null,null,{"$f":"Z25","v":"A2"},1,1,9]
[null,3,{"$f":"C7","v":"신규 발사체(차세대, 재사용 등) 개발 "},null,null,null,null,null,null,null,null,null,null,null,null,null,null,null,null,null,{"$f":"C8","v":"발사장 인프라(해외 지상/해상 발사장 등) 협력 "},null,null,{"$f":"AA25","v":"A3"},1,1,1]
[]
[null,"No.","세부설명"]
[null,1,"기존발사체 경쟁력 제고 및 상용화 ","기존 발사체: 누리호 신뢰도 확보(반복발사, 해외 위성 수주 등) 및 성능/경제성 제고를 위한 개량"]
[null,2,"신규발사체 개발 ","신규 발사체: 우주탐사 확장 및 발사비용 혁신을 위한 신규 발사체 개발 "]
[null,3,"발사장 인프라(해외 지상/해상 발사장 등) 협력 ","발사장 수요 대응 및 발사 방향 제약 극복을 위한 발사장 인프라 확충 "]

{"sheet":"1-3. 위성 생태계 조성","index":3,"n_rows":33,"n_cols":39,"rows_kept":33,"cut":false,"hidden":false,"merged":[[44,8,44,12],[32,3,32,20],[31,3,31,20],[1,1,1,20],[2,1,2,20],[4,11,4,13],[22,1,24,1],[22,2,24,2],[22,3,22,19],[22,20,24,20],[23,3,23,10],[23,12,23,19],[30,3,30,20]]}
[]
[null,"아래의 설문은 성과지표의 가중치 평가를 위한 작업으로서, 각 지표별로 쌍대비교를 하게 됩니다. 비교평가하여 그 중요도에 따라 체크해주시기 바랍니다.\n※ 각 항목의 세부내용에 대해서는 아래 부연설명 란을 참고해 주시기 바랍니다.",null,null,null,null,null,null,null,null,null,null,null,null,null,null,null,null,null,null,null,null,null,"n",3]
[null,"※ AHP방식에 의한 설문의 효과성을 높이기 위해서는 일관성(consistency)이 요구 되며, 일반적으로 10%이하를 기준으로 하고 있습니다.\n아래의 설문을 완성하신 후, Inconsistency ratio가 10%를 초과할 경우 이를 고려하여 수정 부탁드립니다."]
[null,null,null,null,null,null,null,null,null,null,null,null,null,null,null,null,null,null,null,null,null,null,null,null,{"$f":"C6","v":"첨단위성 개발"},{"$f":"C7","v":"위성 인프라 구축 및 고도화 "},{"$f":"C8","v":"위성 데이터 활용"},null,null,null,null,null,null,null,"geomean","weight","sum",null,"chart"]
[null,"No.","AHP 평가대상 항목명",null,null,"Inconsistency = ",null,null,null,null,null,{"$f":"AL19","v":0},null,null,null,null,null,null,null,null,null,null,null,{"$f":"Y4","v":"첨단위성 개발"},1,{"$f":"IF(Z26<=9, 10-Z26, 1/(Z26-8))","v":1},{"$f":"IF(AA26<=9, 10-AA26, 1/(AA26-8))","v":1},null,null,null,null,null,null,null,{"$f":"GEOMEAN(Y5:AH5)","v":1},{"$f":"AI5/AI16","v":0.33333333333333331},{"$f":"SUM(Y5:Y14)","v":3},{"$f":"AJ5*AK5","v":1},{"$f":"AJ5","v":0.33333333333333331}]
[null,1,"첨단위성 개발",null,null,null,null,null,null,null,null,null,null,null,null,null,null,null,null,null,null,null,null,{"$f":"Z4","v":"위성 인프라 구축 및 고도화 "},{"$f":"1/Z5","v":1},1,{"$f":"IF(AA27<=9, 10-AA27, 1/(AA27-8))","v":1},null,null,null,null,null,null,null,{"$f":"GEOMEAN(Y6:AH6)","v":1},{"$f":"AI6/AI16","v":0.33333333333333331},{"$f":"SUM(Z5:Z14)","v":3},{"$f":"AJ6*AK6","v":1},{"$f":"AJ6","v":0.33333333333333331}]
[null,2,"위성 인프라 구축 및 고도화 ",null,null,null,null,null,null,null,null,null,null,null,null,null,null,null,null,null,null,null,null,{"$f":"AA4","v":"위성 데이터 활용"},{"$f":"1/AA5","v":1},{"$f":"1/AA6","v":1},1,null,null,null,null,null,null,null,{"$f":"GEOMEAN(Y7:AH7)","v":1},{"$f":"AI7/AI16","v":0.33333333333333331},{"$f":"SUM(AA5:AA14)","v":3},{"$f":"AJ7*AK7","v":1},{"$f":"AJ7","v":0.33333333333333331}]
[null,3,"위성 데이터 활용"]
[]
[]
[]
[]
[]
[]
[]
[null,null,null,null,null,null,null,null,null,null,null,null,null,null,null,null,null,null,null,null,null,null,null,null,null,null,null,null,null,null,null,null,null,null,{"$f":"SUM(AI5:AI14)","v":3},null,"λmax",{"$f":"SUM(AL5:AL14)","v":3}]
[null,null,null,null,null,null,null,null,null,null,null,null,null,null,null,null,null,null,null,null,null,null,null,null,null,null,null,null,null,null,null,null,null,null,null,null,"C.I",{"$f":"(AL16-Y2)/(Y2-1)","v":0}]
[null,null,null,null,null,null,null,null,null,null,null,null,null,null,null,null,null,null,null,null,null,null,null,null,null,null,null,null,null,null,null,null,null,null,null,null,"RCI",{"$f":"LOOKUP(Y2,X20:AL20,X21:AL21)","v":0.57999999999999996}]
[null,null,null,null,null,null,null,null,null,null,null,null,null,null,null,null,null,null,null,null,null,null,null,"RCI",null,null,null,null,null,null,null,null,null,null,null,null,"ratio",{"$f":"AL17/AL18","v":0}]
[null,null,null,null,null,null,null,null,null,null,null,null,null,null,null,null,null,null,null,null,null,null,null,1,2,3,4,5,6,7,8,9,10,11,12,13,14,15]
[null,null,null,null,null,null,null,null,null,null,null,null,null,null,null,null,null,null,null,null,null,null,null,0,0,0.57999999999999996,0.9,1.1200000000000001,1.24,1.32,1.41,1.45,1.49,1.51,1.48,1.56,1.57,1.59]
[]
[null,"문항","평가기준\n(A)","평 가 척 도",null,null,null,null,null,null,null,null,null,null,null,null,null,null,null,null,"평가기준\n(B)"]
[null,null,null,"A가 B보다 중요",null,null,null,null,null,null,null,"같다","B가 A보다 중요"]
[null,null,null,9,8,7,6,5,4,3,2,1,2,3,4,5,6,7,8,9,null,null,null,null,"A1","A2","A3"]
[null,1,{"$f":"C6","v":"첨단위성 개발"},null,null,null,null,null,null,null,null,null,null,null,null,null,null,null,null,null,{"$f":"C7","v":"위성 인프라 구축 및 고도화 "},null,null,{"$f":"Y25","v":"A1"},1,9,9]
[null,2,{"$f":"C6","v":"첨단위성 개발"},null,null,null,null,null,null,null,null,null,null,null,null,null,null,null,null,null,{"$f":"C8","v":"위성 데이터 활용"},null,null,{"$f":"Z25","v":"A2"},1,1,9]
[null,3,{"$f":"C7","v":"위성 인프라 구축 및 고도화 "},null,null,null,null,null,null,null,null,null,null,null,null,null,null,null,null,null,{"$f":"C8","v":"위성 데이터 활용"},null,null,{"$f":"AA25","v":"A3"},1,1,1]
[]
[null,"No.","부연설명 "]
[null,1,"첨단위성 개발","위성 개발: 다양한 임무, 궤도의 위성 개발 역량 고도화 "]
[null,2,"위성 인프라 구축 및 고도화 ","운영 체계 구축: 위성 운영체계(지상시스템, 데이터 검. 보정, 데이터 운영센터 등) 고도화 "]
[null,3,"위성 데이터 활용 ","데이터 활용 활성화: 위성데이터의 산업 활용도 기반 확대로 부가가치 창출 "]

{"sheet":"1-4. 탐사 확대","index":4,"n_rows":33,"n_cols":39,"rows_kept":33,"cut":false,"hidden":false,"merged":[[44,8,44,12],[1,1,1,20],[2,1,2,20],[4,11,4,13],[22,1,24,1],[22,2,24,2],[22,3,22,19],[22,20,24,20],[23,3,23,10],[23,12,23,19],[32,3,32,20]]}
[]
[null,"아래의 설문은 성과지표의 가중치 평가를 위한 작업으로서, 각 지표별로 쌍대비교를 하게 됩니다. 비교평가하여 그 중요도에 따라 체크해주시기 바랍니다.\n※ 각 항목의 세부내용에 대해서는 아래 부연설명 란을 참고해 주시기 바랍니다.",null,null,null,null,null,null,null,null,null,null,null,null,null,null,null,null,null,null,null,null,null,"n",3]
[null,"※ AHP방식에 의한 설문의 효과성을 높이기 위해서는 일관성(consistency)이 요구 되며, 일반적으로 10%이하를 기준으로 하고 있습니다.\n아래의 설문을 완성하신 후, Inconsistency ratio가 10%를 초과할 경우 이를 고려하여 수정 부탁드립니다."]
[null,null,null,null,null,null,null,null,null,null,null,null,null,null,null,null,null,null,null,null,null,null,null,null,{"$f":"C6","v":"탐사 로드맵 및 선도사업 기획"},{"$f":"C7","v":"무인 탐사"},{"$f":"C8","v":"유인 미션"},null,null,null,null,null,null,null,"geomean","weight","sum",null,"chart"]
[null,"No.","AHP 평가대상 항목명",null,null,"Inconsistency = ",null,null,null,null,null,{"$f":"AL19","v":0},null,null,null,null,null,null,null,null,null,null,null,{"$f":"Y4","v":"탐사 로드맵 및 선도사업 기획"},1,{"$f":"IF(Z26<=9, 10-Z26, 1/(Z26-8))","v":1},{"$f":"IF(AA26<=9, 10-AA26, 1/(AA26-8))","v":1},null,null,null,null,null,null,null,{"$f":"GEOMEAN(Y5:AH5)","v":1},{"$f":"AI5/AI16","v":0.33333333333333331},{"$f":"SUM(Y5:Y14)","v":3},{"$f":"AJ5*AK5","v":1},{"$f":"AJ5","v":0.33333333333333331}]
[null,1,"탐사 로드맵 및 선도사업 기획",null,null,null,null,null,null,null,null,null,null,null,null,null,null,null,null,null,null,null,null,{"$f":"Z4","v":"무인 탐사"},{"$f":"1/Z5","v":1},1,{"$f":"IF(AA27<=9, 10-AA27, 1/(AA27-8))","v":1},null,null,null,null,null,null,null,{"$f":"GEOMEAN(Y6:AH6)","v":1},{"$f":"AI6/AI16","v":0.33333333333333331},{"$f":"SUM(Z5:Z14)","v":3},{"$f":"AJ6*AK6","v":1},{"$f":"AJ6","v":0.33333333333333331}]
[null,2,"무인 탐사",null,null,null,null,null,null,null,null,null,null,null,null,null,null,null,null,null,null,null,null,{"$f":"AA4","v":"유인 미션"},{"$f":"1/AA5","v":1},{"$f":"1/AA6","v":1},1,null,null,null,null,null,null,null,{"$f":"GEOMEAN(Y7:AH7)","v":1},{"$f":"AI7/AI16","v":0.33333333333333331},{"$f":"SUM(AA5:AA14)","v":3},{"$f":"AJ7*AK7","v":1},{"$f":"AJ7","v":0.33333333333333331}]
[null,3,"유인 미션"]
[]
[]
[]
[]
[]
[]
[]
[null,null,null,null,null,null,null,null,null,null,null,null,null,null,null,null,null,null,null,null,null,null,null,null,null,null,null,null,null,null,null,null,null,null,{"$f":"SUM(AI5:AI14)","v":3},null,"λmax",{"$f":"SUM(AL5:AL14)","v":3}]
[null,null,null,null,null,null,null,null,null,null,null,null,null,null,null,null,null,null,null,null,null,null,null,null,null,null,null,null,null,null,null,null,null,null,null,null,"C.I",{"$f":"(AL16-Y2)/(Y2-1)","v":0}]
[null,null,null,null,null,null,null,null,null,null,null,null,null,null,null,null,null,null,null,null,null,null,null,null,null,null,null,null,null,null,null,null,null,null,null,null,"RCI",{"$f":"LOOKUP(Y2,X20:AL20,X21:AL21)","v":0.57999999999999996}]
[null,null,null,null,null,null,null,null,null,null,null,null,null,null,null,null,null,null,null,null,null,null,null,"RCI",null,null,null,null,null,null,null,null,null,null,null,null,"ratio",{"$f":"AL17/AL18","v":0}]
[null,null,null,null,null,null,null,null,null,null,null,null,null,null,null,null,null,null,null,null,null,null,null,1,2,3,4,5,6,7,8,9,10,11,12,13,14,15]
[null,null,null,null,null,null,null,null,null,null,null,null,null,null,null,null,null,null,null,null,null,null,null,0,0,0.57999999999999996,0.9,1.1200000000000001,1.24,1.32,1.41,1.45,1.49,1.51,1.48,1.56,1.57,1.59]
[]
[null,"문항","평가기준\n(A)","평 가 척 도",null,null,null,null,null,null,null,null,null,null,null,null,null,null,null,null,"평가기준\n(B)"]
[null,null,null,"A가 B보다 중요",null,null,null,null,null,null,null,"같다","B가 A보다 중요"]
[null,null,null,9,8,7,6,5,4,3,2,1,2,3,4,5,6,7,8,9,null,null,null,null,"A1","A2","A3"]
[null,1,{"$f":"C6","v":"탐사 로드맵 및 선도사업 기획"},null,null,null,null,null,null,null,null,null,null,null,null,null,null,null,null,null,{"$f":"C7","v":"무인 탐사"},null,null,{"$f":"Y25","v":"A1"},1,9,9]
[null,2,{"$f":"C6","v":"탐사 로드맵 및 선도사업 기획"},null,null,null,null,null,null,null,null,null,null,null,null,null,null,null,null,null,{"$f":"C8","v":"유인 미션"},null,null,{"$f":"Z25","v":"A2"},1,1,9]
[null,3,{"$f":"C7","v":"무인 탐사"},null,null,null,null,null,null,null,null,null,null,null,null,null,null,null,null,null,{"$f":"C8","v":"유인 미션"},null,null,{"$f":"AA25","v":"A3"},1,1,1]
[]
[null,"No.","부연설명 "]
[null,1,{"$f":"C6","v":"탐사 로드맵 및 선도사업 기획"},"프로젝트 기획 협력: 대한민국 우주탐사 로드맵 추진력 확보를 위해 국제 프로그램과의 교류, 연계 강화 "]
[null,2,{"$f":"C7","v":"무인 탐사"},"기술력 확보: 인프라(탐사선, 착륙선 등) 개발 및 운영 기술 확보 등"]
[null,3,{"$f":"C8","v":"유인 미션"},"기술력 확보: 우주인 배출 및 유인 프로그램 전략/기반 마련 "]

{"sheet":"1-5. 기반 분야 강화 ","index":5,"n_rows":33,"n_cols":39,"rows_kept":33,"cut":false,"hidden":false,"merged":[[44,8,44,12],[32,3,32,20],[31,3,31,20],[1,1,1,20],[2,1,2,20],[4,11,4,13],[22,1,24,1],[22,2,24,2],[22,3,22,19],[22,20,24,20],[23,3,23,10],[23,12,23,19],[30,3,30,20]]}
[]
[null,"아래의 설문은 성과지표의 가중치 평가를 위한 작업으로서, 각 지표별로 쌍대비교를 하게 됩니다. 비교평가하여 그 중요도에 따라 체크해주시기 바랍니다.\n※ 각 항목의 세부내용에 대해서는 아래 부연설명 란을 참고해 주시기 바랍니다.",null,null,null,null,null,null,null,null,null,null,null,null,null,null,null,null,null,null,null,null,null,"n",3]
[null,"※ AHP방식에 의한 설문의 효과성을 높이기 위해서는 일관성(consistency)이 요구 되며, 일반적으로 10%이하를 기준으로 하고 있습니다.\n아래의 설문을 완성하신 후, Inconsistency ratio가 10%를 초과할 경우 이를 고려하여 수정 부탁드립니다."]
[null,null,null,null,null,null,null,null,null,null,null,null,null,null,null,null,null,null,null,null,null,null,null,null,{"$f":"C6","v":"산업 생태계 및 클러스터 구축"},{"$f":"C7","v":"우주 안보 협력"},{"$f":"C8","v":"우주인재 양성 및 전문인력 육성"},null,null,null,null,null,null,null,"geomean","weight","sum",null,"chart"]
[null,"No.","AHP 평가대상 항목명",null,null,"Inconsistency = ",null,null,null,null,null,{"$f":"AL19","v":0},null,null,null,null,null,null,null,null,null,null,null,{"$f":"Y4","v":"산업 생태계 및 클러스터 구축"},1,{"$f":"IF(Z26<=9, 10-Z26, 1/(Z26-8))","v":1},{"$f":"IF(AA26<=9, 10-AA26, 1/(AA26-8))","v":1},null,null,null,null,null,null,null,{"$f":"GEOMEAN(Y5:AH5)","v":1},{"$f":"AI5/AI16","v":0.33333333333333331},{"$f":"SUM(Y5:Y14)","v":3},{"$f":"AJ5*AK5","v":1},{"$f":"AJ5","v":0.33333333333333331}]
[null,1,"산업 생태계 및 클러스터 구축",null,null,null,null,null,null,null,null,null,null,null,null,null,null,null,null,null,null,null,null,{"$f":"Z4","v":"우주 안보 협력"},{"$f":"1/Z5","v":1},1,{"$f":"IF(AA27<=9, 10-AA27, 1/(AA27-8))","v":1},null,null,null,null,null,null,null,{"$f":"GEOMEAN(Y6:AH6)","v":1},{"$f":"AI6/AI16","v":0.33333333333333331},{"$f":"SUM(Z5:Z14)","v":3},{"$f":"AJ6*AK6","v":1},{"$f":"AJ6","v":0.33333333333333331}]
[null,2,"우주 안보 협력",null,null,null,null,null,null,null,null,null,null,null,null,null,null,null,null,null,null,null,null,{"$f":"AA4","v":"우주인재 양성 및 전문인력 육성"},{"$f":"1/AA5","v":1},{"$f":"1/AA6","v":1},1,null,null,null,null,null,null,null,{"$f":"GEOMEAN(Y7:AH7)","v":1},{"$f":"AI7/AI16","v":0.33333333333333331},{"$f":"SUM(AA5:AA14)","v":3},{"$f":"AJ7*AK7","v":1},{"$f":"AJ7","v":0.33333333333333331}]
[null,3,"우주인재 양성 및 전문인력 육성"]
[]
[]
[]
[]
[]
[]
[]
[null,null,null,null,null,null,null,null,null,null,null,null,null,null,null,null,null,null,null,null,null,null,null,null,null,null,null,null,null,null,null,null,null,null,{"$f":"SUM(AI5:AI14)","v":3},null,"λmax",{"$f":"SUM(AL5:AL14)","v":3}]
[null,null,null,null,null,null,null,null,null,null,null,null,null,null,null,null,null,null,null,null,null,null,null,null,null,null,null,null,null,null,null,null,null,null,null,null,"C.I",{"$f":"(AL16-Y2)/(Y2-1)","v":0}]
[null,null,null,null,null,null,null,null,null,null,null,null,null,null,null,null,null,null,null,null,null,null,null,null,null,null,null,null,null,null,null,null,null,null,null,null,"RCI",{"$f":"LOOKUP(Y2,X20:AL20,X21:AL21)","v":0.57999999999999996}]
[null,null,null,null,null,null,null,null,null,null,null,null,null,null,null,null,null,null,null,null,null,null,null,"RCI",null,null,null,null,null,null,null,null,null,null,null,null,"ratio",{"$f":"AL17/AL18","v":0}]
[null,null,null,null,null,null,null,null,null,null,null,null,null,null,null,null,null,null,null,null,null,null,null,1,2,3,4,5,6,7,8,9,10,11,12,13,14,15]
[null,null,null,null,null,null,null,null,null,null,null,null,null,null,null,null,null,null,null,null,null,null,null,0,0,0.57999999999999996,0.9,1.1200000000000001,1.24,1.32,1.41,1.45,1.49,1.51,1.48,1.56,1.57,1.59]
[]
[null,"문항","평가기준\n(A)","평 가 척 도",null,null,null,null,null,null,null,null,null,null,null,null,null,null,null,null,"평가기준\n(B)"]
[null,null,null,"A가 B보다 중요",null,null,null,null,null,null,null,"같다","B가 A보다 중요"]
[null,null,null,9,8,7,6,5,4,3,2,1,2,3,4,5,6,7,8,9,null,null,null,null,"A1","A2","A3"]
[null,1,{"$f":"C6","v":"산업 생태계 및 클러스터 구축"},null,null,null,null,null,null,null,null,null,null,null,null,null,null,null,null,null,{"$f":"C7","v":"우주 안보 협력"},null,null,{"$f":"Y25","v":"A1"},1,9,9]
[null,2,{"$f":"C6","v":"산업 생태계 및 클러스터 구축"},null,null,null,null,null,null,null,null,null,null,null,null,null,null,null,null,null,{"$f":"C8","v":"우주인재 양성 및 전문인력 육성"},null,null,{"$f":"Z25","v":"A2"},1,1,9]
[null,3,{"$f":"C7","v":"우주 안보 협력"},null,null,null,null,null,null,null,null,null,null,null,null,null,null,null,null,null,{"$f":"C8","v":"우주인재 양성 및 전문인력 육성"},null,null,{"$f":"AA25","v":"A3"},1,1,1]
[]
[null,"No.","부연설명 "]
[null,1,"산업 생태계 및 클러스터 구축","산업협력 촉진: 수출/수입 및 투자 촉진 "]
[null,2,"우주 안보 협력","우주안전(from space), 우주안보(in space)를 위한 국제협력 "]
[null,3,"우주인재 양성 및 전문인력 육성","인적교류 "]

{"sheet":"2.협력국가","index":6,"n_rows":37,"n_cols":47,"rows_kept":37,"cut":false,"hidden":false,"merged":[[47,8,47,12],[1,1,1,20],[2,1,2,20],[4,11,4,13],[22,1,24,1],[22,2,24,2],[22,3,22,19],[22,20,24,20],[23,3,23,10],[23,12,23,19],[34,3,34,20],[35,3,35,20],[36,3,36,20],[33,3,33,20]]}
[]
[null,"아래의 설문은 성과지표의 가중치 평가를 위한 작업으로서, 각 지표별로 쌍대비교를 하게 됩니다. 비교평가하여 그 중요도에 따라 체크해주시기 바랍니다.\n※ 각 항목의 세부내용에 대해서는 아래 부연설명 란을 참고해 주시기 바랍니다.",null,null,null,null,null,null,null,null,null,null,null,null,null,null,null,null,null,null,null,null,null,"n",4]
[null,"※ AHP방식에 의한 설문의 효과성을 높이기 위해서는 일관성(consistency)이 요구 되며, 일반적으로 10%이하를 기준으로 하고 있습니다.\n아래의 설문을 완성하신 후, Inconsistency ratio가 10%를 초과할 경우 이를 고려하여 수정 부탁드립니다."]
[null,null,null,null,null,null,null,null,null,null,null,null,null,null,null,null,null,null,null,null,null,null,null,null,{"$f":"C6","v":"초강대국"},{"$f":"C7","v":"강대국"},{"$f":"C8","v":"중견국"},{"$f":"C9","v":"후발국가"},null,null,null,null,null,null,"geomean","weight","sum",null,"chart"]
[null,"No.","AHP 평가대상 항목명",null,null,"Inconsistency = ",null,null,null,null,null,{"$f":"AL19","v":0},null,null,null,null,null,null,null,null,null,null,null,{"$f":"Y4","v":"초강대국"},1,{"$f":"IF(Z26<=9, 10-Z26, 1/(Z26-8))","v":1},{"$f":"IF(AA26<=9, 10-AA26, 1/(AA26-8))","v":1},{"$f":"IF(AB26<=9, 10-AB26, 1/(AB26-8))","v":1},null,null,null,null,null,null,{"$f":"GEOMEAN(Y5:AH5)","v":1},{"$f":"AI5/AI16","v":0.25},{"$f":"SUM(Y5:Y14)","v":4},{"$f":"AJ5*AK5","v":1},{"$f":"AJ5","v":0.25}]
[null,1,"초강대국",null,null,null,null,null,null,null,null,null,null,null,null,null,null,null,null,null,null,null,null,{"$f":"Z4","v":"강대국"},{"$f":"1/Z5","v":1},1,{"$f":"IF(AA27<=9, 10-AA27, 1/(AA27-8))","v":1},{"$f":"IF(AB27<=9, 10-AB27, 1/(AB27-8))","v":1},null,null,null,null,null,null,{"$f":"GEOMEAN(Y6:AH6)","v":1},{"$f":"AI6/AI16","v":0.25},{"$f":"SUM(Z5:Z14)","v":4},{"$f":"AJ6*AK6","v":1},{"$f":"AJ6","v":0.25}]
[null,2,"강대국",null,null,null,null,null,null,null,null,null,null,null,null,null,null,null,null,null,null,null,null,{"$f":"AA4","v":"중견국"},{"$f":"1/AA5","v":1},{"$f":"1/AA6","v":1},1,{"$f":"IF(AB28<=9, 10-AB28, 1/(AB28-8))","v":1},null,null,null,null,null,null,{"$f":"GEOMEAN(Y7:AH7)","v":1},{"$f":"AI7/AI16","v":0.25},{"$f":"SUM(AA5:AA14)","v":4},{"$f":"AJ7*AK7","v":1},{"$f":"AJ7","v":0.25}]
[null,3,"중견국",null,null,null,null,null,null,null,null,null,null,null,null,null,null,null,null,null,null,null,null,{"$f":"AB4","v":"후발국가"},{"$f":"1/AB5","v":1},{"$f":"1/AB6","v":1},{"$f":"1/AB7","v":1},1,null,null,null,null,null,null,{"$f":"GEOMEAN(Y8:AH8)","v":1},{"$f":"AI8/AI16","v":0.25},{"$f":"SUM(AB5:AB14)","v":4},{"$f":"AJ8*AK8","v":1},{"$f":"AJ8","v":0.25}]
[null,4,"후발국가"]
[]
[]
[]
[]
[]
[]
[null,null,null,null,null,null,null,null,null,null,null,null,null,null,null,null,null,null,null,null,null,null,null,null,null,null,null,null,null,null,null,null,null,null,{"$f":"SUM(AI5:AI14)","v":4},null,"λmax",{"$f":"SUM(AL5:AL14)","v":4}]
[null,null,null,null,null,null,null,null,null,null,null,null,null,null,null,null,null,null,null,null,null,null,null,null,null,null,null,null,null,null,null,null,null,null,null,null,"C.I",{"$f":"(AL16-Y2)/(Y2-1)","v":0}]
[null,null,null,null,null,null,null,null,null,null,null,null,null,null,null,null,null,null,null,null,null,null,null,null,null,null,null,null,null,null,null,null,null,null,null,null,"RCI",{"$f":"LOOKUP(Y2,X20:AL20,X21:AL21)","v":0.9}]
[null,null,null,null,null,null,null,null,null,null,null,null,null,null,null,null,null,null,null,null,null,null,null,"RCI",null,null,null,null,null,null,null,null,null,null,null,null,"ratio",{"$f":"AL17/AL18","v":0}]
[null,null,null,null,null,null,null,null,null,null,null,null,null,null,null,null,null,null,null,null,null,null,null,1,2,3,4,5,6,7,8,9,10,11,12,13,14,15]
[null,null,null,null,null,null,null,null,null,null,null,null,null,null,null,null,null,null,null,null,null,null,null,0,0,0.57999999999999996,0.9,1.1200000000000001,1.24,1.32,1.41,1.45,1.49,1.51,1.48,1.56,1.57,1.59]
[]
[null,"문항","평가기준\n(A)","평 가 척 도",null,null,null,null,null,null,null,null,null,null,null,null,null,null,null,null,"평가기준\n(B)"]
[null,null,null,"A가 B보다 중요",null,null,null,null,null,null,null,"같다","B가 A보다 중요"]
[null,null,null,9,8,7,6,5,4,3,2,1,2,3,4,5,6,7,8,9,null,null,null,null,"A1","A2","A3","A4"]
[null,1,{"$f":"C6","v":"초강대국"},null,null,null,null,null,null,null,null,null,null,null,null,null,null,null,null,null,{"$f":"C7","v":"강대국"},null,null,{"$f":"Y25","v":"A1"},1,9,9,9]
[null,2,{"$f":"C6","v":"초강대국"},null,null,null,null,null,null,null,null,null,null,null,null,null,null,null,null,null,{"$f":"C8","v":"중견국"},null,null,{"$f":"Z25","v":"A2"},1,1,9,9]
[null,3,{"$f":"C6","v":"초강대국"},null,null,null,null,null,null,null,null,null,null,null,null,null,null,null,null,null,{"$f":"C9","v":"후발국가"},null,null,{"$f":"AA25","v":"A3"},1,1,1,9]
[null,4,{"$f":"C7","v":"강대국"},null,null,null,null,null,null,null,null,null,null,null,null,null,null,null,null,null,{"$f":"C8","v":"중견국"},null,null,{"$f":"AB25","v":"A4"},1,1,1,1]
[null,5,{"$f":"C7","v":"강대국"},null,null,null,null,null,null,null,null,null,null,null,null,null,null,null,null,null,{"$f":"C9","v":"후발국가"}]
[null,6,{"$f":"C8","v":"중견국"},null,null,null,null,null,null,null,null,null,null,null,null,null,null,null,null,null,{"$f":"C9","v":"후발국가"}]
[]
[null,"No.","부연설명 ",null,null,null,null,null,null,null,null,null,null,null,null,null,null,null,null,null,null,null,null,null,null,null,null,null,null,null,null,null,null,null,null,null,null,null,null,null,null,null,null,"2024 World government expenditures for space programs (Unit: 10 million USD)"]
[null,1,{"$f":"C6","v":"초강대국"},"('24년 우주예산) $15B 이상: 미국, 중국",null,null,null,null,null,null,null,null,null,null,null,null,null,null,null,null,null,null,null,null,null,null,null,null,null,null,null,null,null,null,null,null,null,null,null,null,null,null,null,null,null,null,"(출처) Novaspace"]
[null,2,{"$f":"C7","v":"강대국"},"('24년 우주예산) $1B~$15B: 일본, 러시아, 인도, 프랑스, 독일, 영국, 이탈리아"]
[null,3,{"$f":"C8","v":"중견국"},"('24년 우주예산) $0.2B~$1B: 스페인, 호주, UAE, 사우디, 터키, 벨기에, 네덜란드, 폴란드 등"]
[null,4,{"$f":"C9","v":"후발국가"},"그 외 "]

{"sheet":"3.거버넌스 개선","index":7,"n_rows":35,"n_cols":48,"rows_kept":35,"cut":false,"hidden":false,"merged":[[31,3,31,20],[32,3,32,20],[44,8,44,12],[30,3,30,20],[1,1,1,20],[2,1,2,20],[4,11,4,13],[22,1,24,1],[22,2,24,2],[22,3,22,19],[22,20,24,20],[23,3,23,10],[23,12,23,19]]}
[]
[null,"아래의 설문은 성과지표의 가중치 평가를 위한 작업으로서, 각 지표별로 쌍대비교를 하게 됩니다. 비교평가하여 그 중요도에 따라 체크해주시기 바랍니다.\n※ 각 항목의 세부내용에 대해서는 아래 부연설명 란을 참고해 주시기 바랍니다.",null,null,null,null,null,null,null,null,null,null,null,null,null,null,null,null,null,null,null,null,null,"n",3]
[null,"※ AHP방식에 의한 설문의 효과성을 높이기 위해서는 일관성(consistency)이 요구 되며, 일반적으로 10%이하를 기준으로 하고 있습니다.\n아래의 설문을 완성하신 후, Inconsistency ratio가 10%를 초과할 경우 이를 고려하여 수정 부탁드립니다."]
[null,null,null,null,null,null,null,null,null,null,null,null,null,null,null,null,null,null,null,null,null,null,null,null,{"$f":"C6","v":"우주항공청 범부처 컨트롤 기능 강화"},{"$f":"C7","v":"외교부와 국제협력 협업 체계 강화"},{"$f":"C8","v":"국가우주위원회의 기능 강화"},null,null,null,null,null,null,null,"geomean","weight","sum",null,"chart"]
[null,"No.","AHP 평가대상 항목명",null,null,"Inconsistency = ",null,null,null,null,null,{"$f":"AL19","v":0},null,null,null,null,null,null,null,null,null,null,null,{"$f":"Y4","v":"우주항공청 범부처 컨트롤 기능 강화"},1,{"$f":"IF(Z26<=9, 10-Z26, 1/(Z26-8))","v":1},{"$f":"IF(AA26<=9, 10-AA26, 1/(AA26-8))","v":1},null,null,null,null,null,null,null,{"$f":"GEOMEAN(Y5:AH5)","v":1},{"$f":"AI5/AI16","v":0.33333333333333331},{"$f":"SUM(Y5:Y14)","v":3},{"$f":"AJ5*AK5","v":1},{"$f":"AJ5","v":0.33333333333333331}]
[null,1,"우주항공청 범부처 컨트롤 기능 강화",null,null,null,null,null,null,null,null,null,null,null,null,null,null,null,null,null,null,null,null,{"$f":"Z4","v":"외교부와 국제협력 협업 체계 강화"},{"$f":"1/Z5","v":1},1,{"$f":"IF(AA27<=9, 10-AA27, 1/(AA27-8))","v":1},null,null,null,null,null,null,null,{"$f":"GEOMEAN(Y6:AH6)","v":1},{"$f":"AI6/AI16","v":0.33333333333333331},{"$f":"SUM(Z5:Z14)","v":3},{"$f":"AJ6*AK6","v":1},{"$f":"AJ6","v":0.33333333333333331}]
[null,2,"외교부와 국제협력 협업 체계 강화",null,null,null,null,null,null,null,null,null,null,null,null,null,null,null,null,null,null,null,null,{"$f":"AA4","v":"국가우주위원회의 기능 강화"},{"$f":"1/AA5","v":1},{"$f":"1/AA6","v":1},1,null,null,null,null,null,null,null,{"$f":"GEOMEAN(Y7:AH7)","v":1},{"$f":"AI7/AI16","v":0.33333333333333331},{"$f":"SUM(AA5:AA14)","v":3},{"$f":"AJ7*AK7","v":1},{"$f":"AJ7","v":0.33333333333333331}]
[null,3,"국가우주위원회의 기능 강화"]
[]
[]
[]
[]
[]
[]
[]
[null,null,null,null,null,null,null,null,null,null,null,null,null,null,null,null,null,null,null,null,null,null,null,null,null,null,null,null,null,null,null,null,null,null,{"$f":"SUM(AI5:AI14)","v":3},null,"λmax",{"$f":"SUM(AL5:AL14)","v":3}]
[null,null,null,null,null,null,null,null,null,null,null,null,null,null,null,null,null,null,null,null,null,null,null,null,null,null,null,null,null,null,null,null,null,null,null,null,"C.I",{"$f":"(AL16-Y2)/(Y2-1)","v":0}]
[null,null,null,null,null,null,null,null,null,null,null,null,null,null,null,null,null,null,null,null,null,null,null,null,null,null,null,null,null,null,null,null,null,null,null,null,"RCI",{"$f":"LOOKUP(Y2,X20:AL20,X21:AL21)","v":0.57999999999999996}]
[null,null,null,null,null,null,null,null,null,null,null,null,null,null,null,null,null,null,null,null,null,null,null,"RCI",null,null,null,null,null,null,null,null,null,null,null,null,"ratio",{"$f":"AL17/AL18","v":0}]
[null,null,null,null,null,null,null,null,null,null,null,null,null,null,null,null,null,null,null,null,null,null,null,1,2,3,4,5,6,7,8,9,10,11,12,13,14,15]
[null,null,null,null,null,null,null,null,null,null,null,null,null,null,null,null,null,null,null,null,null,null,null,0,0,0.57999999999999996,0.9,1.1200000000000001,1.24,1.32,1.41,1.45,1.49,1.51,1.48,1.56,1.57,1.59]
[]
[null,"문항","평가기준\n(A)","평 가 척 도",null,null,null,null,null,null,null,null,null,null,null,null,null,null,null,null,"평가기준\n(B)"]
[null,null,null,"A가 B보다 중요",null,null,null,null,null,null,null,"같다","B가 A보다 중요"]
[null,null,null,9,8,7,6,5,4,3,2,1,2,3,4,5,6,7,8,9,null,null,null,null,"A1","A2","A3"]
[null,1,{"$f":"C6","v":"우주항공청 범부처 컨트롤 기능 강화"},null,null,null,null,null,null,null,null,null,null,null,null,null,null,null,null,null,{"$f":"C7","v":"외교부와 국제협력 협업 체계 강화"},null,null,{"$f":"Y25","v":"A1"},1,9,9]
[null,2,{"$f":"C6","v":"우주항공청 범부처 컨트롤 기능 강화"},null,null,null,null,null,null,null,null,null,null,null,null,null,null,null,null,null,{"$f":"C8","v":"국가우주위원회의 기능 강화"},null,null,{"$f":"Z25","v":"A2"},1,1,9]
[null,3,{"$f":"C7","v":"외교부와 국제협력 협업 체계 강화"},null,null,null,null,null,null,null,null,null,null,null,null,null,null,null,null,null,{"$f":"C8","v":"국가우주위원회의 기능 강화"},null,null,{"$f":"AA25","v":"A3"},1,1,1]
[]
[null,"No.","부연설명 "]
[null,1,"우주항공청 범부처 컨트롤 기능 강화","우주항공청이 보다 주도적으로 국제협력을 기획 및 추진할 수 있도록 권한 및 역량 강화 "]
[null,2,"외교부와 국제협력 협업 체계 강화","외교부와의 협력을 강화, '우주를 위한 외교'를 넘어 '외교를 위한 우주'의 포괄적 전략 기획"]
[null,3,"국가우주위원회의 기능 강화","기존 플랫폼인 국가우주위원회의 기능을 강화 "]
[null,null,null,null,null,null,null,null,null,null,null,null,null,null,null,null,null,null,null,null,null,null,null,null,null,null,null,null,null,null,null,null,null,null,null,null,null,null,null,null,null,null,null,null,null,null,null,"우주항공 거버넌스"]
[null,null,null,null,null,null,null,null,null,null,null,null,null,null,null,null,null,null,null,null,null,null,null,null,null,null,null,null,null,null,null,null,null,null,null,null,null,null,null,null,null,null,null,null,null,null,"(출처) 우주항공청 설립운영 기본방향"]

{"sheet":"4.인적사항","index":8,"n_rows":15,"n_cols":11,"rows_kept":15,"cut":false,"hidden":false,"merged":[]}
[]
[]
[null,null,null,"응답자 인적사항"]
[]
[]
[null,null,null,"작성된 개인정보는 본 목적 이외의 용도로는 사용되지 않습니다."]
[]
[null,null,null,"1. 근무하고 계신 분야를 선택해주세요.",null,null,"업종목록",null,"업력(年)",null,"직급"]
[null,null,{"$f":"IF(D9=\"\",\"   -----값을 선택하세요-----\",\"\")","v":"   -----값을 선택하세요-----"},null,null,null,"민간기업",null,"<5",null,"실무자"]
[null,null,null,null,null,null,"공공기관, 협회 및 출연연구소",null,"<10",null,"중간 관리자"]
[null,null,null,"2. 응답자 분의 업력을 선택해주세요",null,null,"학계",null,"<15",null,"상위 관리자"]
[null,null,{"$f":"IF(D12=\"\",\"   -----값을 선택하세요-----\",\"\")","v":"   -----값을 선택하세요-----"},null,null,null,null,null,">15",null,"최고 책임자"]
[]
[null,null,null,"3. 응답자 분의 직급을 선택해주세요"]
[null,null,{"$f":"IF(D15=\"\",\"   -----값을 선택하세요-----\",\"\")","v":"   -----값을 선택하세요-----"}]